Cogmind - Beta 9.2 @@@ ROGUE MODE // 2019.11.15 @ 00:57:02 Player: Soraya Result: Destroyed by Y-45 Defender with Beam Rifle Performance ------------- Evolutions (1) 500 Regions Visited (3) 600 Robots Destroyed (28) 140 Value Destroyed (726) 726 Prototype IDs (1) 20 Alien Tech Used (0) 0 Bonus (0) 0 TOTAL SCORE: 1986 Bonus ------- None Cogmind --------- Core Integrity 0/400 Matter 174/300 Energy 90/100 System Corruption 0% Temperature Cool (22) Movement Core (200) Ox3 Location -9/Materials Parts ------- > --- POWER (1) -------- (None) > --- PROPULSION (3) --- (None) > --- UTILITY (3) ------ Medium Storage Unit > --- WEAPON (2) ------- Particle Cannon > --- INVENTORY (8) ---- Improved Medium Laser Peak State ------------ > --- POWER ------------ Light Nuclear Core > --- PROPULSION ------- Aluminum Leg Aluminum Leg > --- UTILITY ---------- Improved Heat Sink Medium Storage Unit > --- WEAPON ----------- Particle Cannon Assault Rifle > --- INVENTORY -------- Ion Engine Light Treads Aluminum Leg Aluminum Leg Small Laser Beam Rifle Particle Cannon Assault Rifle [Rating: 13] Favorites ----------- Power Light Nuclear Core Engine Ion Engine Power Core Light Nuclear Core Propulsion Aluminum Leg Leg Aluminum Leg Utility Medium Storage Unit Device Improved Heat Sink Storage Medium Storage Unit Protection Core Shielding Weapon Assault Rifle Energy Gun Small Laser Energy Cannon Particle Cannon Ballistic Gun Assault Rifle Launcher Grenade Launcher Build | -11 -10 -10 -9 ------- Run | Scr Mat Min Mat Slots Evolved 2 | . . . 2 Power . | . . . . Propulsion 1 | . . . 1 Utility 1 | . . . 1 Weapon . | . . . . Parts Attached 32 | 6 10 4 12 Power 4 | 1 1 1 1 Engine 3 | 1 . 1 1 Core 1 | . 1 . . Reactor . | . . . . Propulsion 7 | 2 3 1 1 Treads . | . . . . Leg 7 | 2 3 1 1 Wheel . | . . . . Hover . | . . . . Flight . | . . . . Utility 4 | 1 2 . 1 Device 1 | . 1 . . Storage 2 | 1 1 . . Processor . | . . . . Hackware . | . . . . Protection 1 | . . . 1 Artifact . | . . . . Weapon 17 | 2 4 2 9 Energy Gun 5 | 1 2 . 2 Energy Cannon 3 | . 1 1 1 Ballistic Gun 7 | 1 1 1 4 Ballistic Cannon . | . . . . Launcher 2 | . . . 2 Special Weapon . | . . . . Impact Weapon . | . . . . Slashing Weapon . | . . . . Piercing Weapon . | . . . . Special Melee Weapon . | . . . . Unidentified Prototypes 1 | . . . 1 Parts Lost 20 | . 4 6 10 Power 4 | . 1 2 1 Propulsion 5 | . 1 1 3 Utility 2 | . . 1 1 Weapon 9 | . 2 2 5 Highest Loss Streak 9 | . 2 6 9 Average Slot Usage (%) 86 | . 95 78 70 Engine 3 | . 4 1 3 Core 6 | . 9 2 . Leg 27 | . 28 27 25 Device 6 | . 10 4 . Storage 13 | . 14 14 11 Protection 2 | . . . 9 Energy Gun 3 | . 3 . 3 Energy Cannon 9 | . 9 14 9 Ballistic Gun 12 | . 15 13 7 Naked Turns . | . . . . Heaviest Build 20 | 12 20 20 19 Greatest Support 30 | 20 20 20 30 Greatest Overweight (x) 4 | . . 1 4 Average Overweight (x) . | . . . . Largest Inventory Capacity 10 | 6 10 8 8 Average Capacity 7 | 5 7 8 8 Most Carried 8 | 4 8 8 5 Average Carried 5 | 1 6 5 3 Final Capacity 8 | 6 8 8 8 Final Carried 8 | 4 8 5 1 Class Distribution -------------------- 76% | Mutant 23% | Scavenger-Mutant Dominant Class ---------------- Mutant | -10/Materials Mutant | -10/Mines Mutant | -9/Materials Resources | -11 -10 -10 -9 ----------- Run | Scr Mat Min Mat Matter Collected 587 | 181 329 34 43 Remotely . | . . . . Salvage Created 957 | . 508 20 429 Parts 52 | . 27 . 25 Haulers Intercepted 1 | . 1 . . Recyclers Shooed . | . . . . Parts Field Recycled . | . . . . Retrieved Matter . | . . . . Parts Self-Destructed . | . . . . Prevented . | . . . . Kills | -11 -10 -10 -9 ------- Run | Scr Mat Min Mat Combat Hostiles Destroyed 25 | . 13 1 11 Guns 19 | . 10 . 9 Cannons 5 | . 3 1 1 AOE 1 | . . . 1 Classes Destroyed 7 | . 3 1 3 Worker 1 | . . . 1 Tunneler 1 | . . . 1 Hauler 1 | . 1 . . Swarmer 7 | . 3 . 4 Grunt 15 | . 10 . 5 Sentry 2 | . . . 2 Assembled 1 | . . 1 . Best Kill Streak 7 | . 4 1 7 Combat Bots Only 7 | . 4 1 7 Max Kills in Single Turn 2 | . 2 1 2 Gunslinging 1 | . 1 . . Exploded 1 | . . . 1 Melee . | . . . . Uniques/NPCs Destroyed . | . . . . Combat | -11 -10 -10 -9 -------- Run | Scr Mat Min Mat Damage Taken 2409 | . 768 480 1161 Core 650 | . 98 146 406 Absorbed by Shields . | . . . . Core Remaining (%) 51 | 100 . 2 . Volleys Fired 91 | . 53 2 36 Largest 2 | . 2 2 2 Hottest 124 | . 88 88 124 Shots Fired 172 | . 106 3 63 Gun 134 | . 91 1 42 Cannon 35 | . 15 2 18 Launcher 3 | . . . 3 Special . | . . . . Kinetic 84 | . 58 1 25 Thermal 85 | . 48 2 35 Explosive 3 | . . . 3 Electromagnetic . | . . . . Robot Hit Streak 11 | . 11 1 7 Robot Miss Streak 4 | . 4 2 2 Penetration Max . | . . . . Secondary Targets 3 | . 1 . 2 Max Gunslinging Chain 1 | . 1 . 1 Shots Hit Robots 117 | . 75 1 41 Core Hits 49 | . 25 1 23 Critical Hits . | . . . . Critical Kills . | . . . . Critical Parts Destroyed . | . . . . Melee Attacks . | . . . . Impact . | . . . . Slashing . | . . . . Piercing . | . . . . Sneak Attacks . | . . . . Combat Hostiles . | . . . . Follow-up Attacks . | . . . . Damage Inflicted 1807 | . 953 23 831 Guns 1106 | . 685 . 421 Cannons 515 | . 266 20 229 Explosions 177 | . . . 177 Melee . | . . . . Ramming 9 | . 2 3 4 Kinetic 637 | . 422 . 215 Thermal 984 | . 529 20 435 Explosive 177 | . . . 177 Electromagnetic . | . . . . Impact . | . . . . Slashing . | . . . . Piercing . | . . . . Highest Corruption 5 | . . 5 . Average Corruption 5 | . . 5 . Corruption Purged . | . . . . Effects 2 | . . 2 . Matter Fused 1 | . . 1 . Heat Flow Errors 1 | . . 1 . Overload Shots . | . . . . Overflow Damage . | . . . . Projectiles . | . . . . Explosions . | . . . . Melee . | . . . . Knockbacks . | . . . . Impact . | . . . . Kinetic . | . . . . Secondary . | . . . . Self-Inflicted Damage 43 | . 1 . 42 Shots 1 | . . . 1 Rammed 4 | . 1 . 3 Targets Rammed 5 | . 1 1 3 Kicked 1 | . . 1 . Crushed . | . . . . Highest Temperature 488 | . 78 138 488 Average Temperature 144 | . 29 55 263 Received Heat Transfer 768 | . 366 . 402 Effects 12 | . . . 12 Shutdowns 2 | . . . 2 Interference 2 | . . . 2 Matter Decay 1 | . . . 1 Damage (minor) 4 | . . . 4 Damage (major) 3 | . . . 3 Siege Activations . | . . . . Robots Corrupted . | . . . . Combat Hostiles . | . . . . Parts Fried . | . . . . Impact Corruptions . | . . . . Robots Melted . | . . . . Combat Hostiles . | . . . . Parts Melted 6 | . 3 . 3 Heat Transferred 2006 | . 1081 37 888 Parts Sabotaged . | . . . . Parts Stolen . | . . . . Parts Stripped . | . . . . Power Chain Reactions . | . . . . Missiles Intercepted . | . . . . Alert | -11 -10 -10 -9 ------- Run | Scr Mat Min Mat Peak Influence 240 | . 240 5 230 Average Influence 71 | . 109 . 45 Maximum Alert Level 1 | . 1 . 1 Low Security (%) 86 | 100 78 100 93 Level 1 13 | . 21 . 6 Level 2 . | . . . . Level 3 . | . . . . Level 4 . | . . . . Level 5 . | . . . . High Security . | . . . . Max Security . | . . . . Squads Dispatched 4 | . 4 . . Investigation 1 | . 1 . . Extermination . | . . . . Reinforcement 3 | . 3 . . Assault . | . . . . Garrison . | . . . . Intercept . | . . . . Construction Impeded . | . . . . Haulers Reinforced . | . . . . Stealth | -11 -10 -10 -9 --------- Run | Scr Mat Min Mat Distress Signals 8 | . 3 . 5 Communications Jammed . | . . . . Distress Signals . | . . . . Times Spotted 58 | . 24 15 19 Peak Tracking Total 19 | . 6 19 9 Tactical Retreats 5 | . 1 1 3 Traps | -11 -10 -10 -9 ------- Run | Scr Mat Min Mat Traps Triggered 1 | . 1 . . Indirectly . | . . . . Trap Hack Attempts . | . . . . Triggered . | . . . . Disarmed . | . . . . Reprogrammed . | . . . . Reused . | . . . . Traps Extracted . | . . . . Installed . | . . . . Triggered . | . . . . Machines | -11 -10 -10 -9 ---------- Run | Scr Mat Min Mat Machines Disabled 2 | . . . 2 Max in Single Turn 1 | . . . 1 Machines Sabotaged . | . . . . Garrisons Compromised . | . . . . Overloaded Fab Kills . | . . . . Fab Network Shutdowns . | . . . . Hacking | -11 -10 -10 -9 --------- Run | Scr Mat Min Mat Machines Accessed 3 | . 2 . 1 Terminals 3 | . 2 . 1 Fabricators . | . . . . Repair Stations . | . . . . Recycling Units . | . . . . Scanalyzers . | . . . . Garrison Access . | . . . . Total Hacks 7 | . 2 . 5 Successful 4 | . 1 . 3 Failed 3 | . 1 . 2 Catastrophic 1 | . 1 . . Database Lockouts . | . . . . Manual . | . . . . Terminals 7 | . 2 . 5 Fabricators . | . . . . Repair Stations . | . . . . Recycling Units . | . . . . Scanalyzers . | . . . . Garrison Access . | . . . . Terminal Hacks 4 | . 1 . 3 Robot Analysis 1 | . . . 1 Alert Level 1 | . . . 1 Transport Status 1 | . 1 . . Zone Layout 1 | . . . 1 Fabricator Hacks . | . . . . Repair Station Hacks . | . . . . Recycling Unit Hacks . | . . . . Scanalyzer . | . . . . Garrison Access Hacks . | . . . . Unauthorized Hacks . | . . . . Terminals . | . . . . Fabricators . | . . . . Repair Stations . | . . . . Recycling Units . | . . . . Scanalyzers . | . . . . Garrison Access . | . . . . Data Cores Recovered . | . . . . Used . | . . . . Hacking Detections 2 | . 1 . 1 Full Trace Events . | . . . . Feedback Events . | . . . . Feedback Blocked . | . . . . Robot Schematics Acquired . | . . . . Robots Built . | . . . . Matter . | . . . . Time . | . . . . Total Robot Build Rating . | . . . . Part Schematics Acquired . | . . . . Parts Built . | . . . . Matter . | . . . . Time . | . . . . Total Part Build Rating . | . . . . Parts Repaired . | . . . . Time . | . . . . Parts Recycled . | . . . . Recycled Matter . | . . . . Retrieved Matter . | . . . . Retrieved Components . | . . . . Parts Scanalyzed . | . . . . Part Schematics Acquired . | . . . . Parts Damaged . | . . . . Bothacking | -11 -10 -10 -9 ------------ Run | Scr Mat Min Mat Used RIF Installer . | . . . . Robots Hacked . | . . . . Non-combat . | . . . . Combat . | . . . . Robot Hacks Applied . | . . . . Relay Couplers Released . | . . . . Robots Rewired . | . . . . Allies Hacked . | . . . . Hacks Repelled . | . . . . Allies | -11 -10 -10 -9 -------- Run | Scr Mat Min Mat Total Allies . | . . . . Largest Group . | . . . . Highest-Rated Group . | . . . . Highest-Rated Ally . | . . . . Total Orders . | . . . . Ally Attacks . | . . . . Total Damage . | . . . . Kills . | . . . . Allies Corrupted . | . . . . Allies Melted . | . . . . Intel | -11 -10 -10 -9 ------- Run | Scr Mat Min Mat Robot Analysis Total 1 | . . . 1 Derelict Logs Recovered . | . . . . Drone Launches . | . . . . Drone Recoveries . | . . . . Exploration | -11 -10 -10 -9 ------------- Run | Scr Mat Min Mat Turns Passed 1575 | 85 869 228 393 Spaces Moved 883 | 61 427 178 217 Core 8 | 1 . . 7 Treads . | . . . . Legs 875 | 60 427 178 210 Wheels . | . . . . Hover . | . . . . Flight . | . . . . Fastest Speed 50 | 50 120 120 120 Average Speed 120 | 118 120 121 121 Slowest Speed 250 | 120 120 150 250 Overloaded Moves . | . . . . Propulsion Burnouts . | . . . . Robots Hopped . | . . . . Cave-ins Triggered . | . . . . Exploration Rate (%) 34 | 5 49 52 32 Regions Visited 3 Branch Regions 1 Pre-discovered Areas . | . . . . Known Exits Taken . | . . . . Unknown Exits Taken 3 | 1 1 1 . Scrap Searched 1 | . . 1 . Spaces Dug . | . . . . Terrain Destroyed 9 | . . . 9 Melee . | . . . . Projectile . | . . . . AOE 9 | . . . 9 Actions | -11 -10 -10 -9 --------- Run | Scr Mat Min Mat Total 1216 | 70 679 187 280 Wait 179 | . 170 . 9 Move 880 | 60 426 177 217 Hop . | . . . . Pick Up 22 | 4 13 2 3 Fast Attach 6 | 6 . . . Attach 17 | . 6 4 7 Detach . | . . . . Swap 9 | . 4 . 5 Drop 7 | . 6 1 . Fire 91 | . 53 2 36 Melee . | . . . . Ram 3 | . . . 3 Kick 2 | . 1 1 . Crush . | . . . . Escape Stasis . | . . . . Rewire . | . . . . Trap . | . . . . Miscellaneous . | . . . . Route ------- -11/Scrapyard -10/Materials (discovered 2 exits: *Mat / [*Min]) -10/Mines -9/Materials (discovered 1 exit: [*Min]) History --------- Turn | Location | Event 46 | -11/Scrapyard | Discovered new exit (range 15) 86 | -11/Scrapyard | Entered Materials 142 | -10/Materials | Discovered new exit (range 12) 300 | -10/Materials | Build established: Mutant 426 | -10/Materials | Discovered new exit (range 7) 955 | -10/Materials | Entered Mines 980 | -10/Mines | Assembled infested the area 985 | -10/Mines | Assisted by a Guerilla fighting off Assembled 1023 | -10/Mines | Core integrity fell below 50% 1027 | -10/Mines | Core integrity fell below 20% 1055 | -10/Mines | Lost 6 parts (2p1n1u2w) 1148 | -10/Mines | Discovered new exit (range 15) 1183 | -10/Mines | Entered Materials 1183 | -9/Materials | Evolved 2 slots: Propulsion x1, Utility x1 1423 | -9/Materials | Discovered new exit (range 12) 1531 | -9/Materials | Core integrity fell below 50% 1541 | -9/Materials | Destroyed 7 combat bots 1558 | -9/Materials | Core integrity fell below 20% 1576 | -9/Materials | Destroyed by Y-45 Defender with Beam Rifle Last Messages --------------- 01546_ R-06 Scavenger collects Flight Unit. 01549_ K-01 Serf collects debris. 01550_ G-34 Mercenary destroyed. 01551_ K-01 Serf collects debris. 01552_ Hvy. Assault Rifle destroyed. 01552_ Slammed into G-47 Trooper. 01553_ Slammed into G-34 Mercenary. 01556_ Acquired 13 matter. 01556_ K-01 Serf collects debris. 01556_ Acquired 14 matter. 01558_ R-06 Scavenger collects Aluminum Leg. 01561_ R-06 Scavenger collects Heat Sink. 01574_ R-06 Scavenger inserts Ion Engine into recycling unit. 01575_ Recycling unit begins recycling process. [Achievement: Let's See Who's Tougher] 01575_ G-34 Mercenary destroyed. 01575_ Grenade Launcher destroyed. 01575_ Destroyed Grenade Launcher. 01575_ T-07 Excavator destroyed. 01575_ W-16 Scout sends out distress signal. Map ----- +----------------------------------------------------+ | ??????# #???????????# ?#""" #??????????????????? | | ??????# #???????????# ?#""" #??????????????????? | | ??????# #???????????# ## #######????????????? | | ??????# #???????????# ######+## #????????????? | | ??????# #???????????# ^ #????????????? | | ??????# #???????????# ^^ #????????????? | | ####### ############# ^ #????????????? | | + !== # #????????????? | | # != # ^ ##????????????? | | # == # """ """ #??######?????? | | + / """ """ #??"!"|""#????? | | ########### # """^ """ #? "!"|" #????? | | ??????????# ## ## ##/#?? | | ??????????# ## ? | | ??????????# ## """ """ < ? | | ??????????############ """ """ ? | | ?????????????????? """ """ k## ###??? | | ?????????????????? #?########????? | | ????????????????? ####??????????? | | ????????????????? #??????????? | | ??????????????????######### #??????????? | | ????????????????# # ####???????? | | ????????????????+ """ # w #???????? | | ????????????????# """! % k #???????? | | ????????????????#=! """% g r % #???????? | | ????????????????#=! r@ Yr %%##### #???????? | | ????????????????#= "Y" # %###+####?? #??????? | | ????????????????# """ # !#%!%%* #??? ?????? | | ????????????????# # # =% T #????###????? | | ????????????????########### # #???????????? | | ??????????????????????????# # #???????????? | | ??????????????????????????# # #???????????? | | ??????????????????????????# # """ #???????????? | | ??????????????????????????# # " "" #???????????? | | ??????????????????????????# # "" #???????????? | | ??????????????????????????# # #???????????? | | ??????????????????????????# # "? #???????????? | | ??????????????????????????# # "??#???????????? | | ??????????????????????????# # "??????????????? | | ??????????????????????????# # ??????????????? | | ??????????????????????????? # # #??????????????? | | ????????????????????????????? ???????????????????? | | ?????????????????????????????????????????????????? | | ?????????????????????????????????????????????????? | | ?????????????????????????????????????????????????? | | ?????????????????????????????????????????????????? | | ?????????????????????????????????????????????????? | | ?????????????????????????????????????????????????? | | ?????????????????????????????????????????????????? | | ?????????????????????????????????????????????????? | +----------------------------------------------------+ Best States ------------- Heat Dissipation 39 Energy Generation 14 Energy Capacity 250 Matter Stores 300 Matter Capacity 300 Sight Range 16 Terrain Scan Density 10 Core Shielding 20 Evasion (%) 40 Item Schematics ----------------- None Robot Schematics ------------------ None Fabricated ------------ Nothing Alien Tech Used ----------------- None Achievements -------------- Close Call Let's See Who's Tougher Challenges ------------ None Game ------ Seed LongswordCoolingMembrane Manual? 0 Play Time 00:34:19 Cumulative 17.4 hours Start 2019.11.14 @ 20:17:16 End 2019.11.15 @ 00:57:02 Sessions 1 Manual Loads 0 Difficulty Rogue Special Mode None Game No. 16 Rogue 13 Adventurer 1 Explorer 2 Win Type - Total 0 Types 0/0/0/0/0/0/0 Lore% 16 Gallery% 17 Achievement% 12 Wizard Run 0 Options --------- ASCII 0 Keyboard 0 Movement Arrows Keybinds 0 Fullscreen 2 Font 18/Terminus Map View 76x50 Tactical HUD 1 Map Filters NONE Filters NONE Steam 1 RUN: 37083205-f25f-4345-baca-31ebdd49f001